[Event "Titled Tuesday Blitz June 27 Late 2023"]
[White "Reprintsev, Alexander"]
[Black "Kopacz, Grzegorz"]
[WhiteFideId "14100541"]
[BlackFideId "1109880"]
[WhiteElo "2470"]
[BlackElo "2204"]
[Result "1-0"]
[Round "2"]
[TimeControl "180+2"]
[Date "2023.06.27"]
[WhiteClock "0:00:29"]
[BlackClock "0:00:19"]
[Board "168"]

1. e4 {[%clk 0:02:59]}  c5 {[%clk 0:02:59]} 2. b3 {[%clk 0:02:58]}  e5 {[%clk 0:02:56]} 3. Bb2 {[%clk 0:02:57]}  d6 {[%clk 0:02:57]} 4. f4 {[%clk 0:02:57]}  Nc6 {[%clk 0:02:55]} 5. Bb5 {[%clk 0:02:57]}  exf4 {[%clk 0:02:31]} 6. Qf3 {[%clk 0:02:56]}  Nf6 {[%clk 0:02:25]} 7. Qxf4 {[%clk 0:02:53]}  Be7 {[%clk 0:02:25]} 8. Nf3 {[%clk 0:02:51]}  O-O {[%clk 0:02:24]} 9. Bxc6 {[%clk 0:02:51]}  bxc6 {[%clk 0:02:23]} 10. d3 {[%clk 0:02:52]}  h6 {[%clk 0:02:08]} 11. Nbd2 {[%clk 0:02:48]}  Be6 {[%clk 0:02:05]} 12. O-O {[%clk 0:02:45]}  d5 {[%clk 0:02:01]} 13. Rae1 {[%clk 0:02:35]}  d4 {[%clk 0:01:55]} 14. Nc4 {[%clk 0:02:26]}  Ng4 {[%clk 0:01:42]} 15. h3 {[%clk 0:02:18]}  Bxc4 {[%clk 0:01:35]} 16. Qxg4 {[%clk 0:01:59]}  Be6 {[%clk 0:01:33]} 17. Qg3 {[%clk 0:01:54]}  Bd6 {[%clk 0:01:28]} 18. Qf2 {[%clk 0:01:50]}  Qc7 {[%clk 0:01:27]} 19. e5 {[%clk 0:01:43]}  Be7 {[%clk 0:01:27]} 20. Nd2 {[%clk 0:01:39]}  Bg5 {[%clk 0:01:26]} 21. Kh1 {[%clk 0:01:33]}  Qe7 {[%clk 0:01:22]} 22. Ne4 {[%clk 0:01:27]}  Be3 {[%clk 0:01:22]} 23. Rxe3 {[%clk 0:01:27]}  dxe3 {[%clk 0:01:22]} 24. Qxe3 {[%clk 0:01:28]}  Bd5 {[%clk 0:01:15]} 25. Qxc5 {[%clk 0:01:24]}  Qxc5 {[%clk 0:01:12]} 26. Nxc5 {[%clk 0:01:24]}  Rfe8 {[%clk 0:00:58]} 27. c4 {[%clk 0:01:23]}  Be6 {[%clk 0:00:57]} 28. Kg1 {[%clk 0:01:19]}  Red8 {[%clk 0:00:56]} 29. Kf2 {[%clk 0:01:19]}  g6 {[%clk 0:00:48]} 30. Ke3 {[%clk 0:01:19]}  Kg7 {[%clk 0:00:48]} 31. d4 {[%clk 0:01:19]}  Bf5 {[%clk 0:00:45]} 32. g4 {[%clk 0:01:17]}  Bc8 {[%clk 0:00:43]} 33. Bc3 {[%clk 0:01:16]}  h5 {[%clk 0:00:41]} 34. Ba5 {[%clk 0:01:13]}  Re8 {[%clk 0:00:38]} 35. gxh5 {[%clk 0:01:12]}  Bxh3 {[%clk 0:00:38]} 36. h6+ {[%clk 0:01:10]}  Kxh6 {[%clk 0:00:36]} 37. Rh1 {[%clk 0:01:08]}  Kg5 {[%clk 0:00:33]} 38. Rxh3 {[%clk 0:01:07]}  f5 {[%clk 0:00:34]} 39. Kf3 {[%clk 0:01:02]}  Rh8 {[%clk 0:00:32]} 40. Bd2+ {[%clk 0:01:01]}  f4 {[%clk 0:00:31]} 41. Bxf4+ {[%clk 0:00:38]}  Kf5 {[%clk 0:00:31]} 42. Rg3 {[%clk 0:00:39]}  Rh5 {[%clk 0:00:27]} 43. Ne4 {[%clk 0:00:29]}  Rah8 {[%clk 0:00:24]} 44. Nd6+ {[%clk 0:00:29]}  Ke6 {[%clk 0:00:24]} 45. Rxg6+ {[%clk 0:00:30]}  Kd7 {[%clk 0:00:24]} 46. Ke4 {[%clk 0:00:30]}  Rh4 {[%clk 0:00:21]} 47. Rg7+ {[%clk 0:00:28]}  Ke6 {[%clk 0:00:20]} 48. d5+ {[%clk 0:00:28]}  cxd5+ {[%clk 0:00:19]} 49. cxd5# {[%clk 0:00:29]} 1-0


[Site "https://www.chess.com"]

[Event "Titled Tuesday Blitz June 27 Late 2023"]
[White "ilya2700"]
[Black "Fishchuk, Vladyslav"]
[BlackFideId "34122117"]
[WhiteElo "2169"]
[BlackElo "2459"]
[Result "1-0"]
[Round "2"]
[TimeControl "180+2"]
[Date "2023.06.27"]
[WhiteClock "0:01:43"]
[BlackClock "0:02:27"]
[Board "172"]

1. e4 {[%clk 0:02:59]}  e5 {[%clk 0:02:57]} 2. Nf3 {[%clk 0:03:00]}  Nc6 {[%clk 0:02:58]} 3. Bc4 {[%clk 0:02:59]}  Nf6 {[%clk 0:02:58]} 4. d3 {[%clk 0:02:59]}  Bc5 {[%clk 0:02:57]} 5. Nc3 {[%clk 0:03:00]}  a6 {[%clk 0:02:56]} 6. Be3 {[%clk 0:02:59]}  Bxe3 {[%clk 0:02:55]} 7. fxe3 {[%clk 0:03:00]}  d6 {[%clk 0:02:54]} 8. Qd2 {[%clk 0:02:59]}  Na5 {[%clk 0:02:46]} 9. Bb3 {[%clk 0:02:30]}  Nxb3 {[%clk 0:02:45]} 10. axb3 {[%clk 0:02:31]}  Bg4 {[%clk 0:02:45]} 11. Rf1 {[%clk 0:02:29]}  Qd7 {[%clk 0:02:42]} 12. h3 {[%clk 0:02:28]}  Bh5 {[%clk 0:02:40]} 13. g4 {[%clk 0:02:17]}  Bg6 {[%clk 0:02:39]} 14. O-O-O {[%clk 0:02:03]}  O-O-O {[%clk 0:02:35]} 15. g5 {[%clk 0:01:53]}  Ng8 {[%clk 0:02:30]} 16. d4 {[%clk 0:01:49]}  Qxh3 {[%clk 0:02:27]} 17. dxe5 {[%clk 0:01:45]}  dxe5 {[%clk 0:02:27]} 18. Qxd8# {[%clk 0:01:43]} 1-0


[Site "https://www.chess.com"]

[Event "Titled Tuesday Blitz June 27 Late 2023"]
[White "Manukian, Artak"]
[Black "zano2023"]
[WhiteFideId "13301373"]
[WhiteElo "2454"]
[BlackElo "2149"]
[Result "1-0"]
[Round "2"]
[TimeControl "180+2"]
[Date "2023.06.27"]
[WhiteClock "0:01:05"]
[BlackClock "0:01:28"]
[Board "175"]

1. e4 {[%clk 0:03:00]}  e5 {[%clk 0:02:59]} 2. Nf3 {[%clk 0:02:58]}  d6 {[%clk 0:03:00]} 3. Bc4 {[%clk 0:02:56]}  Be7 {[%clk 0:02:59]} 4. d4 {[%clk 0:02:56]}  exd4 {[%clk 0:02:59]} 5. Nxd4 {[%clk 0:02:54]}  Nf6 {[%clk 0:02:59]} 6. Nc3 {[%clk 0:02:54]}  c6 {[%clk 0:02:59]} 7. f3 {[%clk 0:02:53]}  O-O {[%clk 0:02:59]} 8. Nb3 {[%clk 0:02:52]}  b5 {[%clk 0:02:59]} 9. Be2 {[%clk 0:02:52]}  a5 {[%clk 0:02:59]} 10. a4 {[%clk 0:02:52]}  b4 {[%clk 0:02:59]} 11. Na2 {[%clk 0:02:51]}  Be6 {[%clk 0:02:59]} 12. Be3 {[%clk 0:02:48]}  c5 {[%clk 0:02:53]} 13. c4 {[%clk 0:02:41]}  Nc6 {[%clk 0:02:52]} 14. O-O {[%clk 0:02:38]}  Ne5 {[%clk 0:02:52]} 15. Nd2 {[%clk 0:02:32]}  h6 {[%clk 0:02:45]} 16. Nc1 {[%clk 0:02:28]}  Ng6 {[%clk 0:02:37]} 17. Nd3 {[%clk 0:02:20]}  Qc8 {[%clk 0:02:36]} 18. b3 {[%clk 0:02:11]}  Nd7 {[%clk 0:02:30]} 19. f4 {[%clk 0:02:01]}  f5 {[%clk 0:02:30]} 20. Bf3 {[%clk 0:01:59]}  Rb8 {[%clk 0:02:24]} 21. exf5 {[%clk 0:01:49]}  Bxf5 {[%clk 0:02:23]} 22. Ne4 {[%clk 0:01:49]}  Nf6 {[%clk 0:02:21]} 23. Nxf6+ {[%clk 0:01:47]}  Bxf6 {[%clk 0:02:20]} 24. Ra2 {[%clk 0:01:46]}  Re8 {[%clk 0:02:19]} 25. Bc1 {[%clk 0:01:45]}  Kh7 {[%clk 0:02:17]} 26. g4 {[%clk 0:01:39]}  Bd4+ {[%clk 0:02:17]} 27. Kh1 {[%clk 0:01:36]}  Bxd3 {[%clk 0:02:17]} 28. Qxd3 {[%clk 0:01:35]}  Rf8 {[%clk 0:01:57]} 29. Be4 {[%clk 0:01:29]}  Qe8 {[%clk 0:01:57]} 30. h4 {[%clk 0:01:23]}  Qe7 {[%clk 0:01:54]} 31. Bxg6+ {[%clk 0:01:20]}  Kh8 {[%clk 0:01:54]} 32. g5 {[%clk 0:01:15]}  Qe6 {[%clk 0:01:48]} 33. Re2 {[%clk 0:01:06]}  Qg4 {[%clk 0:01:46]} 34. Qf3 {[%clk 0:01:07]}  Qxh4+ {[%clk 0:01:46]} 35. Rh2 {[%clk 0:01:06]}  Qxh2+ {[%clk 0:01:28]} 36. Kxh2 {[%clk 0:01:05]} 1-0


[Site "https://www.chess.com"]

[Event "Titled Tuesday Blitz June 27 Late 2023"]
[White "Mickiewicz, Piotr"]
[Black "Brown, Raehanna"]
[WhiteFideId "1114891"]
[BlackFideId "7402740"]
[WhiteElo "2451"]
[BlackElo "2147"]
[Result "1-0"]
[Round "2"]
[TimeControl "180+2"]
[Date "2023.06.27"]
[WhiteClock "0:01:58"]
[BlackClock "0:00:10"]
[Board "176"]

1. Nf3 {[%clk 0:03:00]}  Nf6 {[%clk 0:02:56]} 2. g3 {[%clk 0:03:01]}  g6 {[%clk 0:02:56]} 3. Bg2 {[%clk 0:03:01]}  Bg7 {[%clk 0:02:57]} 4. O-O {[%clk 0:03:02]}  O-O {[%clk 0:02:57]} 5. c4 {[%clk 0:03:02]}  c5 {[%clk 0:02:52]} 6. d4 {[%clk 0:03:01]}  cxd4 {[%clk 0:02:52]} 7. Nxd4 {[%clk 0:03:00]}  Nc6 {[%clk 0:02:52]} 8. Nc3 {[%clk 0:03:00]}  a6 {[%clk 0:02:33]} 9. b3 {[%clk 0:02:58]}  Qc7 {[%clk 0:02:33]} 10. Bb2 {[%clk 0:02:57]}  Rd8 {[%clk 0:02:29]} 11. Rc1 {[%clk 0:02:55]}  Qb8 {[%clk 0:02:19]} 12. Nd5 {[%clk 0:02:48]}  Nxd5 {[%clk 0:01:55]} 13. cxd5 {[%clk 0:02:49]}  Nxd4 {[%clk 0:01:56]} 14. Bxd4 {[%clk 0:02:48]}  Bxd4 {[%clk 0:01:43]} 15. Qxd4 {[%clk 0:02:49]}  Qd6 {[%clk 0:01:43]} 16. e4 {[%clk 0:02:45]}  e5 {[%clk 0:01:38]} 17. Qc5 {[%clk 0:02:42]}  Qxc5 {[%clk 0:01:25]} 18. Rxc5 {[%clk 0:02:43]}  d6 {[%clk 0:01:25]} 19. Rc7 {[%clk 0:02:43]}  b5 {[%clk 0:01:18]} 20. Rfc1 {[%clk 0:02:42]}  Bd7 {[%clk 0:01:08]} 21. f4 {[%clk 0:02:28]}  f6 {[%clk 0:01:05]} 22. Kf2 {[%clk 0:02:26]}  Rac8 {[%clk 0:01:02]} 23. Ke3 {[%clk 0:02:26]}  g5 {[%clk 0:00:47]} 24. fxg5 {[%clk 0:02:19]}  fxg5 {[%clk 0:00:46]} 25. Rxd7 {[%clk 0:02:19]}  Rxc1 {[%clk 0:00:42]} 26. Rxd8+ {[%clk 0:02:19]}  Kg7 {[%clk 0:00:43]} 27. Rxd6 {[%clk 0:02:19]}  Rc2 {[%clk 0:00:43]} 28. Bf3 {[%clk 0:02:18]}  Rxa2 {[%clk 0:00:41]} 29. h4 {[%clk 0:02:17]}  gxh4 {[%clk 0:00:40]} 30. gxh4 {[%clk 0:02:17]}  Ra3 {[%clk 0:00:41]} 31. h5 {[%clk 0:02:15]}  Rxb3+ {[%clk 0:00:41]} 32. Kf2 {[%clk 0:02:15]}  Rb2+ {[%clk 0:00:40]} 33. Kg3 {[%clk 0:02:15]}  a5 {[%clk 0:00:40]} 34. h6+ {[%clk 0:02:14]}  Kf7 {[%clk 0:00:41]} 35. Bh5+ {[%clk 0:02:13]}  Ke7 {[%clk 0:00:40]} 36. Re6+ {[%clk 0:02:14]}  Kd7 {[%clk 0:00:37]} 37. Rxe5 {[%clk 0:02:15]}  a4 {[%clk 0:00:33]} 38. Be8+ {[%clk 0:02:12]}  Kd8 {[%clk 0:00:30]} 39. d6 {[%clk 0:02:01]}  a3 {[%clk 0:00:25]} 40. Bc6 {[%clk 0:02:00]}  Rb3+ {[%clk 0:00:11]} 41. Kg4 {[%clk 0:01:59]}  Rc3 {[%clk 0:00:10]} 42. Re8# {[%clk 0:01:58]} 1-0


[Site "https://www.chess.com"]

[Event "Titled Tuesday Blitz June 27 Late 2023"]
[White "Andrejic, Vladica"]
[Black "Herman, Daniel"]
[WhiteFideId "928178"]
[BlackFideId "30935008"]
[WhiteElo "2136"]
[BlackElo "2446"]
[Result "0-1"]
[Round "2"]
[TimeControl "180+2"]
[Date "2023.06.27"]
[WhiteClock "0:00:59"]
[BlackClock "0:00:27"]
[Board "177"]

1. d4 {[%clk 0:03:00]}  g6 {[%clk 0:02:59]} 2. e4 {[%clk 0:03:00]}  Bg7 {[%clk 0:02:59]} 3. c4 {[%clk 0:03:00]}  d6 {[%clk 0:02:58]} 4. f4 {[%clk 0:03:00]}  c5 {[%clk 0:02:57]} 5. d5 {[%clk 0:03:00]}  e6 {[%clk 0:02:56]} 6. Nf3 {[%clk 0:03:01]}  exd5 {[%clk 0:02:55]} 7. cxd5 {[%clk 0:03:01]}  Nf6 {[%clk 0:02:54]} 8. Nc3 {[%clk 0:03:01]}  O-O {[%clk 0:02:53]} 9. Be2 {[%clk 0:03:02]}  Re8 {[%clk 0:02:50]} 10. e5 {[%clk 0:03:02]}  dxe5 {[%clk 0:02:48]} 11. fxe5 {[%clk 0:03:03]}  Ng4 {[%clk 0:02:47]} 12. e6 {[%clk 0:03:04]}  fxe6 {[%clk 0:02:46]} 13. d6 {[%clk 0:03:04]}  Nc6 {[%clk 0:02:38]} 14. O-O {[%clk 0:03:05]}  Nd4 {[%clk 0:02:12]} 15. Ne4 {[%clk 0:03:05]}  h6 {[%clk 0:01:14]} 16. h3 {[%clk 0:02:53]}  Ne5 {[%clk 0:01:12]} 17. Nxe5 {[%clk 0:02:51]}  Bxe5 {[%clk 0:01:13]} 18. Bxh6 {[%clk 0:02:51]}  Qh4 {[%clk 0:01:00]} 19. Nxc5 {[%clk 0:02:06]}  Qxh6 {[%clk 0:00:53]} 20. d7 {[%clk 0:02:01]}  Qe3+ {[%clk 0:00:38]} 21. Rf2 {[%clk 0:01:50]}  Bxd7 {[%clk 0:00:38]} 22. Nxd7 {[%clk 0:01:48]}  Bg3 {[%clk 0:00:38]} 23. Nf6+ {[%clk 0:01:39]}  Kh8 {[%clk 0:00:37]} 24. Nxe8 {[%clk 0:01:31]}  Qxf2+ {[%clk 0:00:36]} 25. Kh1 {[%clk 0:01:31]}  Nxe2 {[%clk 0:00:36]} 26. Qd7 {[%clk 0:01:27]}  Be5 {[%clk 0:00:33]} 27. Nd6 {[%clk 0:01:08]}  Rf8 {[%clk 0:00:27]} 28. Ne4 {[%clk 0:01:00]}  Qf1+ {[%clk 0:00:26]} 29. Rxf1 {[%clk 0:00:59]}  Rxf1# {[%clk 0:00:27]} 0-1


[Site "https://www.chess.com"]

[Event "Titled Tuesday Blitz June 27 Late 2023"]
[White "Mazurkiewicz, Michal"]
[Black "Petersson, Kjell"]
[WhiteFideId "1124943"]
[BlackFideId "1705148"]
[WhiteElo "2445"]
[BlackElo "2120"]
[Result "1-0"]
[Round "2"]
[TimeControl "180+2"]
[Date "2023.06.27"]
[WhiteClock "0:01:20"]
[BlackClock "0:00:31"]
[Board "179"]

1. e4 {[%clk 0:03:00]}  c5 {[%clk 0:02:59]} 2. Nf3 {[%clk 0:03:00]}  d6 {[%clk 0:03:00]} 3. g3 {[%clk 0:03:00]}  Nf6 {[%clk 0:02:59]} 4. d3 {[%clk 0:03:01]}  g6 {[%clk 0:02:58]} 5. Bg2 {[%clk 0:03:01]}  Bg7 {[%clk 0:02:58]} 6. O-O {[%clk 0:03:02]}  Nc6 {[%clk 0:02:58]} 7. Re1 {[%clk 0:03:02]}  Rb8 {[%clk 0:02:56]} 8. a4 {[%clk 0:03:02]}  O-O {[%clk 0:02:51]} 9. e5 {[%clk 0:03:02]}  dxe5 {[%clk 0:02:49]} 10. Nxe5 {[%clk 0:03:03]}  Nxe5 {[%clk 0:02:47]} 11. Rxe5 {[%clk 0:03:04]}  b6 {[%clk 0:02:41]} 12. Bf4 {[%clk 0:02:57]}  Nh5 {[%clk 0:02:27]} 13. Rxh5 {[%clk 0:02:56]}  gxh5 {[%clk 0:02:12]} 14. Bxb8 {[%clk 0:02:56]}  Bg4 {[%clk 0:02:12]} 15. f3 {[%clk 0:02:55]}  Qd4+ {[%clk 0:02:09]} 16. Kh1 {[%clk 0:02:53]}  Rxb8 {[%clk 0:01:56]} 17. c3 {[%clk 0:02:48]}  Qf2 {[%clk 0:01:11]} 18. fxg4 {[%clk 0:02:36]}  Qxb2 {[%clk 0:01:08]} 19. Ra3 {[%clk 0:02:20]}  b5 {[%clk 0:01:05]} 20. Rb3 {[%clk 0:02:18]}  Qa1 {[%clk 0:00:54]} 21. Rxb5 {[%clk 0:02:16]}  Rxb5 {[%clk 0:00:50]} 22. axb5 {[%clk 0:02:17]}  hxg4 {[%clk 0:00:46]} 23. Bd5 {[%clk 0:01:58]}  Bxc3 {[%clk 0:00:46]} 24. Nxc3 {[%clk 0:01:56]}  Qxc3 {[%clk 0:00:44]} 25. Qxg4+ {[%clk 0:01:56]}  Kf8 {[%clk 0:00:42]} 26. Qf5 {[%clk 0:01:32]}  Qc1+ {[%clk 0:00:38]} 27. Kg2 {[%clk 0:01:31]}  Qd2+ {[%clk 0:00:38]} 28. Kh3 {[%clk 0:01:31]}  Qh6+ {[%clk 0:00:38]} 29. Kg2 {[%clk 0:01:25]}  Qd2+ {[%clk 0:00:38]} 30. Qf2 {[%clk 0:01:23]}  Qxf2+ {[%clk 0:00:32]} 31. Kxf2 {[%clk 0:01:24]}  e6 {[%clk 0:00:31]} 32. Be4 {[%clk 0:01:20]} 1-0


[Site "https://www.chess.com"]

[Event "Titled Tuesday Blitz June 27 Late 2023"]
[White "Ricaurte Lopez, Juan Carlos"]
[Black "Sukandar, Irine Kharisma"]
[WhiteFideId "3600327"]
[BlackFideId "7101937"]
[WhiteElo "2107"]
[BlackElo "2445"]
[Result "1-0"]
[Round "2"]
[TimeControl "180+2"]
[Date "2023.06.27"]
[WhiteClock "0:00:03"]
[BlackClock "0:00:00"]
[Board "180"]

1. e4 {[%clk 0:02:59]}  c5 {[%clk 0:03:00]} 2. d4 {[%clk 0:02:58]}  cxd4 {[%clk 0:03:00]} 3. c3 {[%clk 0:02:58]}  dxc3 {[%clk 0:02:57]} 4. Nxc3 {[%clk 0:02:57]}  Nc6 {[%clk 0:02:57]} 5. Bc4 {[%clk 0:02:55]}  e6 {[%clk 0:02:58]} 6. Nf3 {[%clk 0:02:54]}  Bb4 {[%clk 0:02:55]} 7. O-O {[%clk 0:02:52]}  Nge7 {[%clk 0:02:54]} 8. Bg5 {[%clk 0:02:41]}  h6 {[%clk 0:02:51]} 9. Bh4 {[%clk 0:02:41]}  O-O {[%clk 0:02:47]} 10. a3 {[%clk 0:02:34]}  Bxc3 {[%clk 0:02:47]} 11. bxc3 {[%clk 0:02:34]}  d5 {[%clk 0:02:47]} 12. exd5 {[%clk 0:02:28]}  exd5 {[%clk 0:02:47]} 13. Bd3 {[%clk 0:02:26]}  Qa5 {[%clk 0:02:43]} 14. Qb3 {[%clk 0:02:09]}  Bg4 {[%clk 0:02:26]} 15. Nd4 {[%clk 0:02:08]}  Nxd4 {[%clk 0:02:14]} 16. cxd4 {[%clk 0:02:08]}  Nc6 {[%clk 0:02:14]} 17. Qxb7 {[%clk 0:01:51]}  Nxd4 {[%clk 0:02:13]} 18. f3 {[%clk 0:01:43]}  Rab8 {[%clk 0:02:03]} 19. Qa6 {[%clk 0:01:23]}  Qc5 {[%clk 0:01:45]} 20. Bf2 {[%clk 0:01:06]}  Be6 {[%clk 0:00:58]} 21. Rfd1 {[%clk 0:00:58]}  Rb2 {[%clk 0:00:48]} 22. Bh7+ {[%clk 0:00:54]}  Kxh7 {[%clk 0:00:46]} 23. Bxd4 {[%clk 0:00:51]}  Qb5 {[%clk 0:00:35]} 24. Qxb5 {[%clk 0:00:46]}  Rxb5 {[%clk 0:00:35]} 25. Bxa7 {[%clk 0:00:46]}  Ra8 {[%clk 0:00:34]} 26. Bd4 {[%clk 0:00:40]}  Ra4 {[%clk 0:00:33]} 27. Be5 {[%clk 0:00:33]}  Rb3 {[%clk 0:00:28]} 28. Bd6 {[%clk 0:00:32]}  d4 {[%clk 0:00:28]} 29. Bb4 {[%clk 0:00:31]}  d3 {[%clk 0:00:27]} 30. Rac1 {[%clk 0:00:27]}  h5 {[%clk 0:00:20]} 31. Kf2 {[%clk 0:00:27]}  Ra6 {[%clk 0:00:19]} 32. Ke3 {[%clk 0:00:23]}  Bf5 {[%clk 0:00:19]} 33. h3 {[%clk 0:00:19]}  Re6+ {[%clk 0:00:16]} 34. Kf4 {[%clk 0:00:17]}  Bg6 {[%clk 0:00:16]} 35. Rd2 {[%clk 0:00:17]}  Re2 {[%clk 0:00:13]} 36. Rcd1 {[%clk 0:00:17]}  Rb2 {[%clk 0:00:13]} 37. g4 {[%clk 0:00:13]}  hxg4 {[%clk 0:00:10]} 38. hxg4 {[%clk 0:00:13]}  f6 {[%clk 0:00:08]} 39. Rxb2 {[%clk 0:00:09]}  Rxb2 {[%clk 0:00:08]} 40. Rd2 {[%clk 0:00:09]}  Rb1 {[%clk 0:00:08]} 41. Ke3 {[%clk 0:00:08]}  Kg8 {[%clk 0:00:08]} 42. f4 {[%clk 0:00:08]}  f5 {[%clk 0:00:02]} 43. g5 {[%clk 0:00:06]}  Re1+ {[%clk 0:00:02]} 44. Kxd3 {[%clk 0:00:06]}  Re4 {[%clk 0:00:01]} 45. Rf2 {[%clk 0:00:04]}  Bf7 {[%clk 0:00:01]} 46. Kc3 {[%clk 0:00:03]}  Rc4+ {[%clk 0:00:01]} 47. Kb2 {[%clk 0:00:04]}  Bd5 {[%clk 0:00:00]} 48. Rd2 {[%clk 0:00:03]} 1-0


[Site "https://www.chess.com"]

[Event "Titled Tuesday Blitz June 27 Late 2023"]
[White "Karas, Marek"]
[Black "Gyulamiryan-koryun"]
[WhiteFideId "14928558"]
[WhiteElo "2444"]
[BlackElo "2102"]
[Result "1-0"]
[Round "2"]
[TimeControl "180+2"]
[Date "2023.06.27"]
[WhiteClock "0:01:38"]
[BlackClock "0:00:00"]
[Board "181"]

1. h4 {[%clk 0:03:00]}  d5 {[%clk 0:02:56]} 2. d4 {[%clk 0:03:00]}  g6 {[%clk 0:02:47]} 3. Nc3 {[%clk 0:02:59]}  Bg7 {[%clk 0:02:45]} 4. h5 {[%clk 0:02:56]}  c6 {[%clk 0:02:43]} 5. hxg6 {[%clk 0:02:55]}  hxg6 {[%clk 0:02:43]} 6. Rxh8 {[%clk 0:02:55]}  Bxh8 {[%clk 0:02:42]} 7. Nf3 {[%clk 0:02:53]}  Nd7 {[%clk 0:02:38]} 8. e4 {[%clk 0:02:52]}  Ndf6 {[%clk 0:02:33]} 9. Bd3 {[%clk 0:02:51]}  Bg4 {[%clk 0:02:31]} 10. Be3 {[%clk 0:02:47]}  Nxe4 {[%clk 0:02:20]} 11. Nxe4 {[%clk 0:02:46]}  dxe4 {[%clk 0:02:20]} 12. Bxe4 {[%clk 0:02:46]}  Bxd4 {[%clk 0:02:19]} 13. Qxd4 {[%clk 0:02:44]}  Qxd4 {[%clk 0:02:02]} 14. Nxd4 {[%clk 0:02:41]}  O-O-O {[%clk 0:01:59]} 15. f3 {[%clk 0:02:40]}  Nf6 {[%clk 0:01:52]} 16. Bd3 {[%clk 0:02:36]}  Nd5 {[%clk 0:01:39]} 17. Bd2 {[%clk 0:02:31]}  Bd7 {[%clk 0:01:33]} 18. O-O-O {[%clk 0:02:27]}  e5 {[%clk 0:01:33]} 19. Nb3 {[%clk 0:02:25]}  f5 {[%clk 0:01:29]} 20. Rh1 {[%clk 0:02:22]}  b6 {[%clk 0:01:15]} 21. Rh6 {[%clk 0:02:20]}  Rg8 {[%clk 0:01:13]} 22. Bg5 {[%clk 0:02:13]}  c5 {[%clk 0:01:05]} 23. Bc4 {[%clk 0:02:11]}  Be6 {[%clk 0:01:05]} 24. Bxd5 {[%clk 0:02:10]}  Bxd5 {[%clk 0:01:05]} 25. Nd2 {[%clk 0:02:11]}  e4 {[%clk 0:00:58]} 26. fxe4 {[%clk 0:02:10]}  fxe4 {[%clk 0:00:58]} 27. b3 {[%clk 0:02:04]}  e3 {[%clk 0:00:54]} 28. Bxe3 {[%clk 0:01:59]}  Bxg2 {[%clk 0:00:54]} 29. Rh7 {[%clk 0:01:59]}  Bb7 {[%clk 0:00:48]} 30. Bf4 {[%clk 0:01:58]}  g5 {[%clk 0:00:26]} 31. Bg3 {[%clk 0:01:57]}  Bd5 {[%clk 0:00:12]} 32. Rc7+ {[%clk 0:01:50]}  Kd8 {[%clk 0:00:10]} 33. Rxa7 {[%clk 0:01:50]}  Rg6 {[%clk 0:00:10]} 34. Bc7+ {[%clk 0:01:43]}  Kc8 {[%clk 0:00:09]} 35. Bxb6 {[%clk 0:01:43]}  Rxb6 {[%clk 0:00:07]} 36. Rg7 {[%clk 0:01:42]}  c4 {[%clk 0:00:04]} 37. Rxg5 {[%clk 0:01:40]}  cxb3 {[%clk 0:00:03]} 38. Rxd5 {[%clk 0:01:37]}  bxa2 {[%clk 0:00:00]} 39. Ra5 {[%clk 0:01:38]} 1-0


[Site "https://www.chess.com"]

[Event "Titled Tuesday Blitz June 27 Late 2023"]
[White "Ishowmoves57"]
[Black "Labussiere, Yago"]
[BlackFideId "2186969"]
[WhiteElo "2099"]
[BlackElo "2442"]
[Result "0-1"]
[Round "2"]
[TimeControl "180+2"]
[Date "2023.06.27"]
[WhiteClock "0:00:00"]
[BlackClock "0:00:27"]
[Board "182"]

1. e4 {[%clk 0:02:57]}  c5 {[%clk 0:02:59]} 2. Nf3 {[%clk 0:02:56]}  Nc6 {[%clk 0:02:59]} 3. d4 {[%clk 0:02:54]}  cxd4 {[%clk 0:03:00]} 4. Nxd4 {[%clk 0:02:55]}  Nf6 {[%clk 0:03:00]} 5. Nc3 {[%clk 0:02:54]}  d6 {[%clk 0:03:00]} 6. Be2 {[%clk 0:02:50]}  e5 {[%clk 0:03:00]} 7. Nb3 {[%clk 0:02:48]}  Be7 {[%clk 0:03:00]} 8. Be3 {[%clk 0:02:47]}  O-O {[%clk 0:03:00]} 9. O-O {[%clk 0:02:46]}  a5 {[%clk 0:03:00]} 10. a4 {[%clk 0:02:44]}  Be6 {[%clk 0:03:00]} 11. f3 {[%clk 0:02:36]}  Nb4 {[%clk 0:03:00]} 12. Qd2 {[%clk 0:02:23]}  d5 {[%clk 0:02:59]} 13. Nxd5 {[%clk 0:02:23]}  Nfxd5 {[%clk 0:02:57]} 14. exd5 {[%clk 0:02:23]}  Nxd5 {[%clk 0:02:55]} 15. Bf2 {[%clk 0:02:19]}  Nf4 {[%clk 0:02:54]} 16. Qe3 {[%clk 0:01:52]}  Qc7 {[%clk 0:02:52]} 17. Rfe1 {[%clk 0:01:42]}  Qxc2 {[%clk 0:02:49]} 18. Nd4 {[%clk 0:01:18]}  exd4 {[%clk 0:01:49]} 19. Qxf4 {[%clk 0:01:19]}  d3 {[%clk 0:01:46]} 20. Rac1 {[%clk 0:01:07]}  Qxb2 {[%clk 0:01:38]} 21. Bxd3 {[%clk 0:01:06]}  Qf6 {[%clk 0:01:29]} 22. Qe4 {[%clk 0:00:57]}  Qg6 {[%clk 0:01:18]} 23. Qxg6 {[%clk 0:00:45]}  hxg6 {[%clk 0:01:18]} 24. Bxg6 {[%clk 0:00:45]}  Rfc8 {[%clk 0:01:16]} 25. Be4 {[%clk 0:00:42]}  Bb4 {[%clk 0:01:09]} 26. Rxc8+ {[%clk 0:00:24]}  Rxc8 {[%clk 0:01:08]} 27. Ra1 {[%clk 0:00:25]}  Rc7 {[%clk 0:01:08]} 28. Rd1 {[%clk 0:00:23]}  Rd7 {[%clk 0:01:01]} 29. Rxd7 {[%clk 0:00:20]}  Bxd7 {[%clk 0:01:02]} 30. Bxb7 {[%clk 0:00:20]}  Bxa4 {[%clk 0:01:03]} 31. Bd4 {[%clk 0:00:19]}  Bb3 {[%clk 0:01:01]} 32. Kf2 {[%clk 0:00:17]}  a4 {[%clk 0:01:02]} 33. Ke3 {[%clk 0:00:18]}  a3 {[%clk 0:00:52]} 34. Kd3 {[%clk 0:00:17]}  Kh7 {[%clk 0:00:49]} 35. Be4+ {[%clk 0:00:15]}  g6 {[%clk 0:00:49]} 36. Bc3 {[%clk 0:00:15]}  Bd6 {[%clk 0:00:48]} 37. g3 {[%clk 0:00:14]}  Kh6 {[%clk 0:00:47]} 38. f4 {[%clk 0:00:12]}  f5 {[%clk 0:00:47]} 39. Bf3 {[%clk 0:00:11]}  a2 {[%clk 0:00:40]} 40. Kd2 {[%clk 0:00:11]}  Ba3 {[%clk 0:00:39]} 41. Bd1 {[%clk 0:00:10]}  Bd5 {[%clk 0:00:34]} 42. Kc2 {[%clk 0:00:11]}  Bc5 {[%clk 0:00:34]} 43. Kb2 {[%clk 0:00:10]}  Bg1 {[%clk 0:00:34]} 44. h3 {[%clk 0:00:09]}  Bh2 {[%clk 0:00:32]} 45. Be1 {[%clk 0:00:09]}  Bg2 {[%clk 0:00:26]} 46. h4 {[%clk 0:00:08]}  Bd5 {[%clk 0:00:23]} 47. Bf2 {[%clk 0:00:05]}  Kg7 {[%clk 0:00:21]} 48. Bd4+ {[%clk 0:00:05]}  Kh6 {[%clk 0:00:21]} 49. Bf2 {[%clk 0:00:05]}  Kh7 {[%clk 0:00:22]} 50. Be1 {[%clk 0:00:05]}  Bg1 {[%clk 0:00:21]} 51. Bc2 {[%clk 0:00:05]}  Bd4+ {[%clk 0:00:21]} 52. Bc3 {[%clk 0:00:03]}  Bf2 {[%clk 0:00:22]} 53. Bb3 {[%clk 0:00:02]}  a1=Q+ {[%clk 0:00:21]} 54. Kxa1 {[%clk 0:00:02]}  Bxb3 {[%clk 0:00:21]} 55. Kb2 {[%clk 0:00:01]}  Bd5 {[%clk 0:00:21]} 56. Be5 {[%clk 0:00:01]}  Bxg3 {[%clk 0:00:21]} 57. Kc3 {[%clk 0:00:02]}  Bxh4 {[%clk 0:00:22]} 58. Kd4 {[%clk 0:00:03]}  Be4 {[%clk 0:00:22]} 59. Kc5 {[%clk 0:00:04]}  Bg3 {[%clk 0:00:23]} 60. Kd6 {[%clk 0:00:04]}  Kh6 {[%clk 0:00:23]} 61. Ke7 {[%clk 0:00:04]}  Kh5 {[%clk 0:00:24]} 62. Kf6 {[%clk 0:00:05]}  Bh4+ {[%clk 0:00:25]} 63. Kg7 {[%clk 0:00:05]}  Bd5 {[%clk 0:00:24]} 64. Kh7 {[%clk 0:00:04]}  g5 {[%clk 0:00:24]} 65. fxg5 {[%clk 0:00:02]}  Kxg5 {[%clk 0:00:25]} 66. Kg7 {[%clk 0:00:03]}  Kg4 {[%clk 0:00:25]} 67. Kh6 {[%clk 0:00:02]}  Be4 {[%clk 0:00:26]} 68. Kg6 {[%clk 0:00:00]}  Bg3 {[%clk 0:00:27]} 0-1


[Site "https://www.chess.com"]